[Event "Titled Tuesday Blitz May 4 2021"]
[White "Kavinda, Akila"]
[Black "Lewtak, Damian"]
[WhiteFideId "9901302"]
[BlackFideId "1141724"]
[WhiteElo "2043"]
[BlackElo "2291"]
[Result "1-0"]
[Round "05"]
[TimeControl "180+1"]
[Date "2021.05.04"]
[WhiteClock "0:00:40"]
[BlackClock "0:00:15"]

1. e4 {[%clk 0:03:00]}  c5 {[%clk 0:02:59]} 2. Nf3 {[%clk 0:03:00]}  d6 {[%clk 0:03:00]} 3. d4 {[%clk 0:03:01]}  cxd4 {[%clk 0:03:01]} 4. Nxd4 {[%clk 0:03:02]}  Nf6 {[%clk 0:03:01]} 5. Nc3 {[%clk 0:03:02]}  Nc6 {[%clk 0:03:01]} 6. Be3 {[%clk 0:03:00]}  e5 {[%clk 0:03:00]} 7. Nb3 {[%clk 0:02:53]}  Be7 {[%clk 0:02:58]} 8. Be2 {[%clk 0:02:52]}  O-O {[%clk 0:02:56]} 9. O-O {[%clk 0:02:52]}  a5 {[%clk 0:02:56]} 10. a4 {[%clk 0:02:51]}  Nb4 {[%clk 0:02:56]} 11. f4 {[%clk 0:02:46]}  exf4 {[%clk 0:02:54]} 12. Bxf4 {[%clk 0:02:46]}  Be6 {[%clk 0:02:55]} 13. Kh1 {[%clk 0:02:45]}  d5 {[%clk 0:02:47]} 14. e5 {[%clk 0:02:43]}  Ne4 {[%clk 0:02:43]} 15. Nd4 {[%clk 0:02:41]}  Nc5 {[%clk 0:02:33]} 16. Ncb5 {[%clk 0:02:30]}  Nc6 {[%clk 0:02:26]} 17. Qe1 {[%clk 0:01:46]}  Qd7 {[%clk 0:02:14]} 18. Bf3 {[%clk 0:01:37]}  Rfd8 {[%clk 0:02:08]} 19. Qg3 {[%clk 0:01:36]}  Kh8 {[%clk 0:02:02]} 20. Rad1 {[%clk 0:01:29]}  Nxd4 {[%clk 0:01:58]} 21. Nxd4 {[%clk 0:01:28]}  Qxa4 {[%clk 0:01:50]} 22. b3 {[%clk 0:01:11]}  Qe8 {[%clk 0:01:46]} 23. Bh5 {[%clk 0:01:08]}  g6 {[%clk 0:01:33]} 24. Bf3 {[%clk 0:01:06]}  Rac8 {[%clk 0:01:23]} 25. Bh6 {[%clk 0:01:03]}  Ne4 {[%clk 0:01:09]} 26. Bxe4 {[%clk 0:00:58]}  dxe4 {[%clk 0:00:55]} 27. Nxe6 {[%clk 0:00:56]}  fxe6 {[%clk 0:00:56]} 28. Qg4 {[%clk 0:00:47]}  Rxd1 {[%clk 0:00:46]} 29. Rxd1 {[%clk 0:00:45]}  Rd8 {[%clk 0:00:45]} 30. Rf1 {[%clk 0:00:45]}  Qc6 {[%clk 0:00:24]} 31. Qf4 {[%clk 0:00:45]}  e3 {[%clk 0:00:15]} 32. Qf7 {[%clk 0:00:43]}  Rg8 {[%clk 0:00:14]} 33. Qxe7 {[%clk 0:00:40]}  e2 {[%clk 0:00:15]} 34. Qf6+ {[%clk 0:00:40]} 1-0


[Site "https://www.chess.com"]

[Event "Titled Tuesday Blitz May 4 2021"]
[White "Khnykin, Nikolay"]
[Black "Ismayil, Malak"]
[WhiteFideId "4188853"]
[BlackFideId "13412604"]
[WhiteElo "2280"]
[BlackElo "1879"]
[Result "0-1"]
[Round "05"]
[TimeControl "180+1"]
[Date "2021.05.04"]
[WhiteClock "0:00:03"]
[BlackClock "0:00:04"]

1. e4 {[%clk 0:03:00]}  e5 {[%clk 0:02:58]} 2. Nf3 {[%clk 0:02:59]}  Nc6 {[%clk 0:02:58]} 3. Bc4 {[%clk 0:02:57]}  Bc5 {[%clk 0:02:58]} 4. b4 {[%clk 0:02:55]}  Bxb4 {[%clk 0:02:58]} 5. c3 {[%clk 0:02:55]}  Ba5 {[%clk 0:02:56]} 6. d4 {[%clk 0:02:53]}  exd4 {[%clk 0:02:55]} 7. Qb3 {[%clk 0:02:52]}  Qe7 {[%clk 0:02:52]} 8. O-O {[%clk 0:02:51]}  Nf6 {[%clk 0:02:48]} 9. e5 {[%clk 0:02:46]}  Ne4 {[%clk 0:02:47]} 10. Re1 {[%clk 0:02:45]}  Nc5 {[%clk 0:02:46]} 11. Qc2 {[%clk 0:02:33]}  d3 {[%clk 0:02:36]} 12. Qd2 {[%clk 0:02:24]}  a6 {[%clk 0:02:19]} 13. Ba3 {[%clk 0:02:22]}  b5 {[%clk 0:02:09]} 14. Bxd3 {[%clk 0:02:18]}  Bb7 {[%clk 0:02:08]} 15. Qe3 {[%clk 0:02:11]}  Bb6 {[%clk 0:02:07]} 16. Bc2 {[%clk 0:02:11]}  O-O-O {[%clk 0:01:55]} 17. Nbd2 {[%clk 0:02:04]}  Na5 {[%clk 0:01:42]} 18. Qe2 {[%clk 0:01:57]}  g5 {[%clk 0:01:32]} 19. Nd4 {[%clk 0:01:55]}  h5 {[%clk 0:01:23]} 20. N2b3 {[%clk 0:01:35]}  Nc4 {[%clk 0:01:19]} 21. Bb4 {[%clk 0:01:32]}  Rde8 {[%clk 0:01:14]} 22. a4 {[%clk 0:01:23]}  bxa4 {[%clk 0:01:04]} 23. Rxa4 {[%clk 0:01:16]}  Qxe5 {[%clk 0:00:55]} 24. Qxe5 {[%clk 0:01:09]}  Rxe5 {[%clk 0:00:55]} 25. Rxe5 {[%clk 0:01:09]}  Nxe5 {[%clk 0:00:56]} 26. Nxc5 {[%clk 0:01:08]}  Bxc5 {[%clk 0:00:55]} 27. Bxc5 {[%clk 0:01:08]}  d6 {[%clk 0:00:51]} 28. Ba3 {[%clk 0:01:08]}  c5 {[%clk 0:00:46]} 29. Nf5 {[%clk 0:01:07]}  Kc7 {[%clk 0:00:46]} 30. f4 {[%clk 0:00:55]}  gxf4 {[%clk 0:00:33]} 31. Rxf4 {[%clk 0:00:52]}  Rg8 {[%clk 0:00:33]} 32. g3 {[%clk 0:00:48]}  Nf3+ {[%clk 0:00:31]} 33. Kf2 {[%clk 0:00:47]}  Nxh2 {[%clk 0:00:31]} 34. Nh4 {[%clk 0:00:41]}  Ng4+ {[%clk 0:00:29]} 35. Kg1 {[%clk 0:00:38]}  Ne5 {[%clk 0:00:29]} 36. Kf2 {[%clk 0:00:33]}  Ng4+ {[%clk 0:00:27]} 37. Ke2 {[%clk 0:00:29]}  Re8+ {[%clk 0:00:26]} 38. Kd2 {[%clk 0:00:28]}  Ne5 {[%clk 0:00:25]} 39. Rf5 {[%clk 0:00:20]}  Rg8 {[%clk 0:00:22]} 40. Kc1 {[%clk 0:00:17]}  Rxg3 {[%clk 0:00:21]} 41. Rxh5 {[%clk 0:00:17]}  Rxc3 {[%clk 0:00:21]} 42. Bb2 {[%clk 0:00:16]}  Re3 {[%clk 0:00:13]} 43. Bxe5 {[%clk 0:00:16]}  dxe5 {[%clk 0:00:14]} 44. Rh7 {[%clk 0:00:16]}  Bd5 {[%clk 0:00:14]} 45. Nf5 {[%clk 0:00:15]}  Rf3 {[%clk 0:00:12]} 46. Nh6 {[%clk 0:00:13]}  Kb6 {[%clk 0:00:10]} 47. Ng4 {[%clk 0:00:12]}  Rf1+ {[%clk 0:00:10]} 48. Kb2 {[%clk 0:00:12]}  e4 {[%clk 0:00:10]} 49. Ne5 {[%clk 0:00:11]}  Rf5 {[%clk 0:00:08]} 50. Nd7+ {[%clk 0:00:10]}  Kb5 {[%clk 0:00:09]} 51. Rh2 {[%clk 0:00:08]}  Rf3 {[%clk 0:00:06]} 52. Re2 {[%clk 0:00:08]}  f5 {[%clk 0:00:06]} 53. Ne5 {[%clk 0:00:08]}  Rf1 {[%clk 0:00:05]} 54. Ng6 {[%clk 0:00:07]}  a5 {[%clk 0:00:05]} 55. Ne7 {[%clk 0:00:07]}  Bc4 {[%clk 0:00:05]} 56. Re3 {[%clk 0:00:05]}  a4 {[%clk 0:00:05]} 57. Ng6 {[%clk 0:00:03]}  Kb4 {[%clk 0:00:04]} 58. Ne5 {[%clk 0:00:03]}  Rf2 {[%clk 0:00:02]} 59. Nxc4 {[%clk 0:00:02]}  Kxc4 {[%clk 0:00:03]} 60. Ra3 {[%clk 0:00:02]}  Kd4 {[%clk 0:00:03]} 61. Rxa4+ {[%clk 0:00:03]}  c4 {[%clk 0:00:04]} 62. Ra3 {[%clk 0:00:04]}  f4 {[%clk 0:00:04]} 63. Rc3 {[%clk 0:00:05]}  e3 {[%clk 0:00:04]} 64. Kc1 {[%clk 0:00:05]}  Rf1+ {[%clk 0:00:03]} 65. Kb2 {[%clk 0:00:05]}  e2 {[%clk 0:00:03]} 66. Rh3 {[%clk 0:00:05]}  e1=Q {[%clk 0:00:04]} 67. Ra3 {[%clk 0:00:03]}  Qc1+ {[%clk 0:00:04]} 68. Ka2 {[%clk 0:00:03]}  Qxc2# {[%clk 0:00:04]} 0-1


[Site "https://www.chess.com"]

[Event "Titled Tuesday Blitz May 4 2021"]
[White "Komiagina, Maria"]
[Black "Lagunow, Raphael"]
[WhiteFideId "4153987"]
[BlackFideId "24652644"]
[WhiteElo "2014"]
[BlackElo "2400"]
[Result "0-1"]
[Round "05"]
[TimeControl "180+1"]
[Date "2021.05.04"]
[WhiteClock "0:00:15"]
[BlackClock "0:01:22"]

1. e4 {[%clk 0:02:59]}  c5 {[%clk 0:02:59]} 2. Nf3 {[%clk 0:02:58]}  Nc6 {[%clk 0:02:58]} 3. Bb5 {[%clk 0:02:58]}  g6 {[%clk 0:02:57]} 4. Bxc6 {[%clk 0:02:57]}  dxc6 {[%clk 0:02:54]} 5. d3 {[%clk 0:02:56]}  Bg7 {[%clk 0:02:54]} 6. h3 {[%clk 0:02:56]}  Nh6 {[%clk 0:02:55]} 7. Nc3 {[%clk 0:02:54]}  f6 {[%clk 0:02:54]} 8. Be3 {[%clk 0:02:54]}  b6 {[%clk 0:02:54]} 9. Qd2 {[%clk 0:02:54]}  Nf7 {[%clk 0:02:53]} 10. O-O-O {[%clk 0:02:45]}  e5 {[%clk 0:02:53]} 11. Nh2 {[%clk 0:02:45]}  Be6 {[%clk 0:02:52]} 12. f4 {[%clk 0:02:44]}  Qe7 {[%clk 0:02:42]} 13. Nf3 {[%clk 0:02:36]}  exf4 {[%clk 0:02:42]} 14. Bxf4 {[%clk 0:02:36]}  O-O-O {[%clk 0:02:43]} 15. Qe3 {[%clk 0:02:24]}  Rhe8 {[%clk 0:02:36]} 16. Kb1 {[%clk 0:02:22]}  f5 {[%clk 0:02:33]} 17. e5 {[%clk 0:01:50]}  h6 {[%clk 0:02:30]} 18. h4 {[%clk 0:01:48]}  Bd5 {[%clk 0:02:27]} 19. Rhe1 {[%clk 0:01:48]}  Bxf3 {[%clk 0:02:22]} 20. Qxf3 {[%clk 0:01:47]}  Qe6 {[%clk 0:02:19]} 21. Qg3 {[%clk 0:01:08]}  Rg8 {[%clk 0:02:03]} 22. Qf2 {[%clk 0:00:59]}  g5 {[%clk 0:02:01]} 23. hxg5 {[%clk 0:00:58]}  hxg5 {[%clk 0:02:02]} 24. Bh2 {[%clk 0:00:48]}  Rge8 {[%clk 0:01:55]} 25. d4 {[%clk 0:00:44]}  cxd4 {[%clk 0:01:53]} 26. Rxd4 {[%clk 0:00:43]}  Rxd4 {[%clk 0:01:48]} 27. Qxd4 {[%clk 0:00:43]}  Bxe5 {[%clk 0:01:47]} 28. Qa4 {[%clk 0:00:41]}  Kb7 {[%clk 0:01:42]} 29. Bxe5 {[%clk 0:00:32]}  Nxe5 {[%clk 0:01:41]} 30. a3 {[%clk 0:00:28]}  Re7 {[%clk 0:01:37]} 31. Rd1 {[%clk 0:00:25]}  Rd7 {[%clk 0:01:36]} 32. Rxd7+ {[%clk 0:00:19]}  Nxd7 {[%clk 0:01:35]} 33. Qd4 {[%clk 0:00:18]}  Nf6 {[%clk 0:01:28]} 34. b3 {[%clk 0:00:17]}  Ne4 {[%clk 0:01:27]} 35. Nxe4 {[%clk 0:00:17]}  fxe4 {[%clk 0:01:26]} 36. Qg7+ {[%clk 0:00:16]}  Ka6 {[%clk 0:01:24]} 37. Qxg5 {[%clk 0:00:16]}  e3 {[%clk 0:01:25]} 38. Kc1 {[%clk 0:00:15]}  e2 {[%clk 0:01:22]} 0-1


[Site "https://www.chess.com"]

[Event "Titled Tuesday Blitz May 4 2021"]
[White "Korchmar, Vasiliy"]
[Black "Shirazi, Kamran"]
[WhiteFideId "24131750"]
[BlackFideId "2000733"]
[WhiteElo "2370"]
[BlackElo "2317"]
[Result "1-0"]
[Round "05"]
[TimeControl "180+1"]
[Date "2021.05.04"]
[WhiteClock "0:00:09"]
[BlackClock "0:00:14"]

1. d4 {[%clk 0:03:00]}  Nf6 {[%clk 0:02:54]} 2. Nf3 {[%clk 0:03:01]}  b6 {[%clk 0:02:52]} 3. Bf4 {[%clk 0:03:01]}  Bb7 {[%clk 0:02:52]} 4. Nbd2 {[%clk 0:03:00]}  Nh5 {[%clk 0:02:49]} 5. Bg5 {[%clk 0:02:54]}  h6 {[%clk 0:02:48]} 6. Bh4 {[%clk 0:02:54]}  g5 {[%clk 0:02:46]} 7. Bg3 {[%clk 0:02:54]}  Bg7 {[%clk 0:02:45]} 8. c3 {[%clk 0:02:53]}  c5 {[%clk 0:02:45]} 9. e4 {[%clk 0:02:51]}  d6 {[%clk 0:02:39]} 10. d5 {[%clk 0:02:36]}  a6 {[%clk 0:02:37]} 11. a4 {[%clk 0:02:36]}  O-O {[%clk 0:02:30]} 12. Bd3 {[%clk 0:02:22]}  e6 {[%clk 0:02:29]} 13. dxe6 {[%clk 0:02:00]}  fxe6 {[%clk 0:02:28]} 14. O-O {[%clk 0:02:00]}  Nf4 {[%clk 0:02:20]} 15. Bxf4 {[%clk 0:01:33]}  Rxf4 {[%clk 0:02:19]} 16. Nc4 {[%clk 0:01:33]}  d5 {[%clk 0:02:15]} 17. exd5 {[%clk 0:01:33]}  exd5 {[%clk 0:02:15]} 18. Ne3 {[%clk 0:01:30]}  Nd7 {[%clk 0:02:12]} 19. Nf5 {[%clk 0:01:28]}  Qf6 {[%clk 0:02:05]} 20. Ng3 {[%clk 0:01:24]}  Qf8 {[%clk 0:02:00]} 21. Nh5 {[%clk 0:01:20]}  Rf7 {[%clk 0:01:49]} 22. Bc2 {[%clk 0:01:21]}  Ne5 {[%clk 0:01:42]} 23. Nxe5 {[%clk 0:01:15]}  Bxe5 {[%clk 0:01:42]} 24. Qd3 {[%clk 0:01:15]}  Qd6 {[%clk 0:01:39]} 25. g3 {[%clk 0:01:04]}  Raf8 {[%clk 0:01:33]} 26. Rae1 {[%clk 0:01:03]}  c4 {[%clk 0:01:33]} 27. Qg6+ {[%clk 0:00:56]}  Qxg6 {[%clk 0:01:32]} 28. Bxg6 {[%clk 0:00:57]}  Re7 {[%clk 0:01:32]} 29. f4 {[%clk 0:00:53]}  Bd6 {[%clk 0:01:28]} 30. Rxe7 {[%clk 0:00:52]}  Bxe7 {[%clk 0:01:28]} 31. f5 {[%clk 0:00:52]}  Bc5+ {[%clk 0:01:25]} 32. Kg2 {[%clk 0:00:50]}  d4+ {[%clk 0:01:26]} 33. Kh3 {[%clk 0:00:51]}  d3 {[%clk 0:01:24]} 34. g4 {[%clk 0:00:38]}  Bc6 {[%clk 0:01:20]} 35. f6 {[%clk 0:00:34]}  Bxa4 {[%clk 0:01:19]} 36. f7+ {[%clk 0:00:33]}  Kh8 {[%clk 0:01:19]} 37. Rf6 {[%clk 0:00:28]}  Be7 {[%clk 0:00:46]} 38. Re6 {[%clk 0:00:25]}  Bc5 {[%clk 0:00:15]} 39. Bxd3 {[%clk 0:00:20]}  Rxf7 {[%clk 0:00:15]} 40. Rxh6+ {[%clk 0:00:19]}  Kg8 {[%clk 0:00:14]} 41. Bxc4 {[%clk 0:00:19]}  Kf8 {[%clk 0:00:15]} 42. Bxf7 {[%clk 0:00:19]}  Kxf7 {[%clk 0:00:16]} 43. Rf6+ {[%clk 0:00:15]}  Ke7 {[%clk 0:00:15]} 44. Rg6 {[%clk 0:00:12]}  Be3 {[%clk 0:00:13]} 45. Ng3 {[%clk 0:00:12]}  Bc2 {[%clk 0:00:12]} 46. Rc6 {[%clk 0:00:08]}  Kd7 {[%clk 0:00:11]} 47. Rh6 {[%clk 0:00:06]}  Bd3 {[%clk 0:00:11]} 48. Rh8 {[%clk 0:00:03]}  Bf4 {[%clk 0:00:09]} 49. Rf8 {[%clk 0:00:03]}  Ke7 {[%clk 0:00:08]} 50. Ra8 {[%clk 0:00:03]}  Kd6 {[%clk 0:00:09]} 51. Rd8+ {[%clk 0:00:02]}  Kc6 {[%clk 0:00:09]} 52. Rxd3 {[%clk 0:00:03]}  b5 {[%clk 0:00:09]} 53. Nh5 {[%clk 0:00:02]}  b4 {[%clk 0:00:10]} 54. cxb4 {[%clk 0:00:02]}  Be5 {[%clk 0:00:09]} 55. Re3 {[%clk 0:00:02]}  Bxb2 {[%clk 0:00:10]} 56. Rb3 {[%clk 0:00:02]}  Kb5 {[%clk 0:00:11]} 57. Ng3 {[%clk 0:00:03]}  Bc3 {[%clk 0:00:10]} 58. Rb1 {[%clk 0:00:04]}  Kc4 {[%clk 0:00:11]} 59. Ne2 {[%clk 0:00:04]}  Bxb4 {[%clk 0:00:11]} 60. Nc1 {[%clk 0:00:04]}  Kb5 {[%clk 0:00:12]} 61. Na2 {[%clk 0:00:04]}  a5 {[%clk 0:00:12]} 62. Nxb4 {[%clk 0:00:05]}  axb4 {[%clk 0:00:12]} 63. Kg3 {[%clk 0:00:06]}  Kc4 {[%clk 0:00:13]} 64. h4 {[%clk 0:00:06]}  Kc3 {[%clk 0:00:14]} 65. hxg5 {[%clk 0:00:06]}  Kc2 {[%clk 0:00:14]} 66. Rxb4 {[%clk 0:00:06]}  Kd3 {[%clk 0:00:14]} 67. Rf4 {[%clk 0:00:07]}  Ke3 {[%clk 0:00:14]} 68. g6 {[%clk 0:00:08]}  Kd3 {[%clk 0:00:13]} 69. g7 {[%clk 0:00:09]}  Ke2 {[%clk 0:00:13]} 70. g8=Q {[%clk 0:00:09]}  Kd3 {[%clk 0:00:14]} 71. Qe6 {[%clk 0:00:09]} 1-0


[Site "https://www.chess.com"]

[Event "Titled Tuesday Blitz May 4 2021"]
[White "Kostiukov, Alexandr"]
[Black "Necula, Iulian"]
[WhiteFideId "14108100"]
[BlackFideId "1232380"]
[WhiteElo "2240"]
[BlackElo "1776"]
[Result "1-0"]
[Round "05"]
[TimeControl "180+1"]
[Date "2021.05.04"]
[WhiteClock "0:00:32"]
[BlackClock "0:01:01"]

1. g3 {[%clk 0:03:00]}  d6 {[%clk 0:02:58]} 2. Bg2 {[%clk 0:02:59]}  f5 {[%clk 0:02:58]} 3. c4 {[%clk 0:02:59]}  Nf6 {[%clk 0:02:58]} 4. Nc3 {[%clk 0:02:59]}  g6 {[%clk 0:02:58]} 5. Nf3 {[%clk 0:02:59]}  Bg7 {[%clk 0:02:59]} 6. O-O {[%clk 0:02:59]}  O-O {[%clk 0:03:00]} 7. d4 {[%clk 0:03:00]}  c6 {[%clk 0:03:01]} 8. b3 {[%clk 0:02:57]}  Na6 {[%clk 0:02:59]} 9. Bb2 {[%clk 0:02:57]}  Qc7 {[%clk 0:03:00]} 10. d5 {[%clk 0:02:53]}  e5 {[%clk 0:02:57]} 11. dxe6 {[%clk 0:02:49]}  Bxe6 {[%clk 0:02:57]} 12. Ng5 {[%clk 0:02:42]}  Bd7 {[%clk 0:02:47]} 13. Ba3 {[%clk 0:02:22]}  Nc5 {[%clk 0:02:38]} 14. Rc1 {[%clk 0:02:14]}  h6 {[%clk 0:02:37]} 15. Nh3 {[%clk 0:02:14]}  Rad8 {[%clk 0:02:33]} 16. Nf4 {[%clk 0:02:05]}  Kh7 {[%clk 0:02:31]} 17. Nd3 {[%clk 0:02:03]}  Nxd3 {[%clk 0:02:30]} 18. Qxd3 {[%clk 0:02:04]}  Be6 {[%clk 0:02:25]} 19. e4 {[%clk 0:02:04]}  fxe4 {[%clk 0:02:24]} 20. Nxe4 {[%clk 0:02:03]}  Nxe4 {[%clk 0:02:24]} 21. Bxe4 {[%clk 0:02:03]}  Bf5 {[%clk 0:02:24]} 22. Bxf5 {[%clk 0:01:55]}  Rxf5 {[%clk 0:02:24]} 23. Rcd1 {[%clk 0:01:55]}  d5 {[%clk 0:02:22]} 24. Kg2 {[%clk 0:01:36]}  Qf7 {[%clk 0:02:21]} 25. f4 {[%clk 0:01:29]}  Re8 {[%clk 0:02:15]} 26. Rf2 {[%clk 0:01:10]}  dxc4 {[%clk 0:02:09]} 27. bxc4 {[%clk 0:01:09]}  Ra5 {[%clk 0:01:59]} 28. h4 {[%clk 0:01:06]}  Qf5 {[%clk 0:01:51]} 29. Qxf5 {[%clk 0:00:58]}  gxf5 {[%clk 0:01:51]} 30. Bd6 {[%clk 0:00:54]}  Rd8 {[%clk 0:01:31]} 31. Rfd2 {[%clk 0:00:44]}  Ra4 {[%clk 0:01:25]} 32. Bc7 {[%clk 0:00:42]}  Rxd2+ {[%clk 0:01:24]} 33. Rxd2 {[%clk 0:00:43]}  Rxc4 {[%clk 0:01:23]} 34. Rd7 {[%clk 0:00:43]}  Rc2+ {[%clk 0:01:19]} 35. Kh3 {[%clk 0:00:43]}  Kg6 {[%clk 0:01:19]} 36. a4 {[%clk 0:00:39]}  Ra2 {[%clk 0:01:18]} 37. h5+ {[%clk 0:00:38]}  Kf6 {[%clk 0:01:02]} 38. Be5+ {[%clk 0:00:37]}  Ke6 {[%clk 0:01:03]} 39. Rxg7 {[%clk 0:00:37]}  Rxa4 {[%clk 0:01:03]} 40. Rg6+ {[%clk 0:00:33]}  Kd5 {[%clk 0:01:03]} 41. Rxh6 {[%clk 0:00:33]}  b5 {[%clk 0:01:02]} 42. Rd6+ {[%clk 0:00:32]}  Ke4 {[%clk 0:01:01]} 43. h6 {[%clk 0:00:32]} 1-0


[Site "https://www.chess.com"]

[Event "Titled Tuesday Blitz May 4 2021"]
[White "Kriti Mayur Patel"]
[Black "Nastore, Pavel-Alexandru"]
[WhiteFideId "35061780"]
[BlackFideId "1255002"]
[WhiteElo "1212"]
[BlackElo "1809"]
[Result "1-0"]
[Round "05"]
[TimeControl "180+1"]
[Date "2021.05.04"]
[WhiteClock "0:00:41"]
[BlackClock "0:00:02"]

1. e4 {[%clk 0:03:00]}  c5 {[%clk 0:02:57]} 2. d4 {[%clk 0:03:00]}  cxd4 {[%clk 0:02:55]} 3. c3 {[%clk 0:02:59]}  d5 {[%clk 0:02:50]} 4. exd5 {[%clk 0:02:57]}  Qxd5 {[%clk 0:02:44]} 5. cxd4 {[%clk 0:02:57]}  Nc6 {[%clk 0:02:42]} 6. Nf3 {[%clk 0:02:56]}  Bg4 {[%clk 0:02:42]} 7. Nc3 {[%clk 0:02:54]}  Qa5 {[%clk 0:01:54]} 8. d5 {[%clk 0:02:33]}  Rd8 {[%clk 0:01:42]} 9. Bd2 {[%clk 0:02:13]}  Nb8 {[%clk 0:01:19]} 10. Rc1 {[%clk 0:02:01]}  Nf6 {[%clk 0:01:15]} 11. Nb5 {[%clk 0:01:52]}  Qxa2 {[%clk 0:01:06]} 12. Nc7+ {[%clk 0:01:49]}  Kd7 {[%clk 0:01:06]} 13. Bb5+ {[%clk 0:01:47]}  Nc6 {[%clk 0:00:37]} 14. dxc6+ {[%clk 0:01:37]}  Kxc7 {[%clk 0:00:37]} 15. Bf4+ {[%clk 0:01:32]}  e5 {[%clk 0:00:36]} 16. Bxe5+ {[%clk 0:01:30]}  Bd6 {[%clk 0:00:36]} 17. cxb7+ {[%clk 0:01:25]}  Kxb7 {[%clk 0:00:31]} 18. Bc6+ {[%clk 0:01:23]}  Kb6 {[%clk 0:00:22]} 19. Qd4+ {[%clk 0:01:21]}  Ka6 {[%clk 0:00:17]} 20. O-O {[%clk 0:01:04]}  Bxe5 {[%clk 0:00:11]} 21. Qxe5 {[%clk 0:01:00]}  Qb3 {[%clk 0:00:02]} 22. Ra1+ {[%clk 0:00:56]}  Kb6 {[%clk 0:00:02]} 23. Rfc1 {[%clk 0:00:48]}  Bxf3 {[%clk 0:00:03]} 24. Bxf3 {[%clk 0:00:46]}  Nd7 {[%clk 0:00:03]} 25. Qc7+ {[%clk 0:00:45]}  Kb5 {[%clk 0:00:03]} 26. Qb7+ {[%clk 0:00:43]}  Nb6 {[%clk 0:00:02]} 27. Be2+ {[%clk 0:00:42]}  Kb4 {[%clk 0:00:02]} 28. Qe4+ {[%clk 0:00:41]} 1-0


[Site "https://www.chess.com"]

[Event "Titled Tuesday Blitz May 4 2021"]
[White "Leitao, Rafael"]
[Black "Crevatin, Leo"]
[WhiteFideId "2101246"]
[BlackFideId "1726307"]
[WhiteElo "2609"]
[BlackElo "2081"]
[Result "1-0"]
[Round "05"]
[TimeControl "180+1"]
[Date "2021.05.04"]
[WhiteClock "0:00:24"]
[BlackClock "0:00:04"]

1. c4 {[%clk 0:03:00]}  e6 {[%clk 0:02:59]} 2. g3 {[%clk 0:02:59]}  d5 {[%clk 0:02:59]} 3. Bg2 {[%clk 0:02:58]}  dxc4 {[%clk 0:02:59]} 4. Qa4+ {[%clk 0:02:55]}  Nd7 {[%clk 0:02:55]} 5. Qxc4 {[%clk 0:02:55]}  a6 {[%clk 0:02:49]} 6. Nf3 {[%clk 0:02:51]}  b5 {[%clk 0:02:48]} 7. Qc2 {[%clk 0:02:38]}  Bb7 {[%clk 0:02:45]} 8. O-O {[%clk 0:02:37]}  Ngf6 {[%clk 0:02:45]} 9. a4 {[%clk 0:02:35]}  c5 {[%clk 0:02:44]} 10. d3 {[%clk 0:02:35]}  Bd6 {[%clk 0:02:36]} 11. Nc3 {[%clk 0:02:34]}  Qb6 {[%clk 0:02:32]} 12. axb5 {[%clk 0:02:04]}  axb5 {[%clk 0:02:30]} 13. Rxa8+ {[%clk 0:02:04]}  Bxa8 {[%clk 0:02:31]} 14. Bd2 {[%clk 0:01:55]}  O-O {[%clk 0:02:27]} 15. Ra1 {[%clk 0:01:54]}  Bc6 {[%clk 0:02:28]} 16. Qb3 {[%clk 0:01:44]}  h6 {[%clk 0:02:24]} 17. Be1 {[%clk 0:01:25]}  b4 {[%clk 0:02:14]} 18. Nd1 {[%clk 0:01:23]}  Bd5 {[%clk 0:02:11]} 19. Qc2 {[%clk 0:01:23]}  b3 {[%clk 0:01:56]} 20. Qd2 {[%clk 0:01:19]}  Ra8 {[%clk 0:01:46]} 21. Rxa8+ {[%clk 0:01:18]}  Bxa8 {[%clk 0:01:46]} 22. Ne3 {[%clk 0:01:19]}  Bd5 {[%clk 0:01:29]} 23. Qa5 {[%clk 0:01:16]}  Qxa5 {[%clk 0:01:22]} 24. Bxa5 {[%clk 0:01:16]}  Ne5 {[%clk 0:01:16]} 25. Nd2 {[%clk 0:01:14]}  Nc6 {[%clk 0:01:07]} 26. Bc3 {[%clk 0:01:10]}  Bxg2 {[%clk 0:00:59]} 27. Kxg2 {[%clk 0:01:10]}  Nd5 {[%clk 0:00:49]} 28. Nxd5 {[%clk 0:01:04]}  exd5 {[%clk 0:00:49]} 29. Nxb3 {[%clk 0:01:05]}  d4 {[%clk 0:00:37]} 30. Bd2 {[%clk 0:01:03]}  f5 {[%clk 0:00:37]} 31. Bf4 {[%clk 0:00:56]}  Be7 {[%clk 0:00:34]} 32. Bc7 {[%clk 0:00:55]}  Nb4 {[%clk 0:00:29]} 33. Bb6 {[%clk 0:00:54]}  Na6 {[%clk 0:00:29]} 34. e3 {[%clk 0:00:42]}  dxe3 {[%clk 0:00:27]} 35. fxe3 {[%clk 0:00:42]}  Kf7 {[%clk 0:00:27]} 36. Kf3 {[%clk 0:00:42]}  Ke6 {[%clk 0:00:27]} 37. Na5 {[%clk 0:00:41]}  Nb4 {[%clk 0:00:24]} 38. Ke2 {[%clk 0:00:39]}  Nd5 {[%clk 0:00:24]} 39. Nc4 {[%clk 0:00:39]}  g5 {[%clk 0:00:20]} 40. Ba5 {[%clk 0:00:38]}  Bf6 {[%clk 0:00:18]} 41. Kd2 {[%clk 0:00:37]}  h5 {[%clk 0:00:19]} 42. Bc3 {[%clk 0:00:35]}  Nxc3 {[%clk 0:00:17]} 43. bxc3 {[%clk 0:00:35]}  h4 {[%clk 0:00:17]} 44. d4 {[%clk 0:00:33]}  Kd5 {[%clk 0:00:15]} 45. Kd3 {[%clk 0:00:32]}  cxd4 {[%clk 0:00:14]} 46. exd4 {[%clk 0:00:32]}  hxg3 {[%clk 0:00:14]} 47. hxg3 {[%clk 0:00:32]}  f4 {[%clk 0:00:14]} 48. gxf4 {[%clk 0:00:32]}  gxf4 {[%clk 0:00:14]} 49. Nd2 {[%clk 0:00:33]}  Bg5 {[%clk 0:00:12]} 50. Nf3 {[%clk 0:00:31]}  Bf6 {[%clk 0:00:11]} 51. c4+ {[%clk 0:00:32]}  Ke6 {[%clk 0:00:11]} 52. Ke4 {[%clk 0:00:32]}  Kd7 {[%clk 0:00:11]} 53. Kxf4 {[%clk 0:00:32]}  Be7 {[%clk 0:00:12]} 54. Ke4 {[%clk 0:00:32]}  Bb4 {[%clk 0:00:12]} 55. Kd5 {[%clk 0:00:32]}  Ba3 {[%clk 0:00:11]} 56. Ne5+ {[%clk 0:00:33]}  Ke7 {[%clk 0:00:12]} 57. c5 {[%clk 0:00:32]}  Bb2 {[%clk 0:00:11]} 58. Nc4 {[%clk 0:00:32]}  Bc3 {[%clk 0:00:11]} 59. Nd6 {[%clk 0:00:30]}  Bb4 {[%clk 0:00:09]} 60. Nb5 {[%clk 0:00:29]}  Ba5 {[%clk 0:00:08]} 61. Kc6 {[%clk 0:00:28]}  Bd2 {[%clk 0:00:08]} 62. d5 {[%clk 0:00:28]}  Be3 {[%clk 0:00:08]} 63. d6+ {[%clk 0:00:28]}  Kd8 {[%clk 0:00:08]} 64. Nc7 {[%clk 0:00:27]}  Kc8 {[%clk 0:00:06]} 65. Ne6 {[%clk 0:00:25]}  Kb8 {[%clk 0:00:05]} 66. d7 {[%clk 0:00:25]}  Bxc5 {[%clk 0:00:05]} 67. Kxc5 {[%clk 0:00:24]}  Kb7 {[%clk 0:00:04]} 68. d8=Q {[%clk 0:00:24]} 1-0


[Site "https://www.chess.com"]